[Event "58th Akiba Rubinstein C 2022"]
[Site "Polanica-Zdroj"]
[Date "2022.08.20"]
[Round "8.5"]
[White "Szylko, Waldemar"]
[Black "Kawula, Andrzej"]
[Result "0-1"]
[ECO "C00"]
[WhiteElo "1911"]
[BlackElo "1870"]
[Annotator "NA RC"]
[PlyCount "312"]
[EventDate "2022.08.13"]
[EventCountry "POL"]
[SourceTitle "playchess.com"]
[Source "ChessBase"]
[SourceQuality "1"]
[TimeControl "40/5400+30:1800+30"]

1. e4 {[%emt 0:00:04]} e6 {[%emt 0:00:10]} 2. Qe2 {[%emt 0:00:14]} c5 {[%emt 0:00:41]} 3. Nc3 {[%emt 0:00:19]} Nc6 4. g3 {[%emt 0:00:21]} g6 {[%emt 0:03:15]} 5. Bg2 {[%emt 0:00:24]} Bg7 {[%emt 0:00:15]} 6. d3 {[%emt 0:00:15]} Nge7 {[%emt 0:00:58]} 7. Bg5 {[%emt 0:01:23]} Qb6 {[%emt 0:00:00]} 8. Bc1 {[%emt 0:00:13]} Qd8 {[%emt 0:01:00]} 9. Bg5 {[%emt 0:00:47]} Qb6 {[%emt 0:05:06]} 10. Bc1 {[%emt 0:05:22]} O-O {[%emt 0:01:39]} 11. f4 {[%emt 0:03:08]} d5 {[%emt 0:01:41]} 12. e5 {[%emt 0:00:30]} f6 13. exf6 {[%emt 0:00:35]} Bxf6 {[%emt 0:05:57]} 14. Nf3 {[%emt 0:00:33]} Nd4 {[%emt 0:02:52]} 15. Ng1 {[%emt 0:00:22]} Ndc6 {[%emt 0:00:00]} 16. Nf3 {[%emt 0:00:38]} Nd4 {[%emt 0:01:00]} 17. Qd1 {[%emt 0:00:00]} Ndc6 {[%emt 0:00:00]} 18. Qe2 {[%emt 0:01:00]} Nd4 {[%emt 0:01:00]} 19. Qd1 {[%emt 0:00:00]} Ndc6 {[%emt 0:00:00]} 20. Qe2 {[%emt 0:01:00]} Nd4 {[%emt 0:01:00]} 21. Qd1 Nxf3+ {[%emt 0:04:53]} 22. Bxf3 {[%emt 0:02:29]} Nf5 {[%emt 0:00:09]} 23. O-O {[%emt 0:00:53]} c4+ {[%emt 0:02:24]} 24. Kh1 {[%emt 0:00:37]} cxd3 {[%emt 0:01:47]} 25. Qxd3 {[%emt 0:00:48]} Bd7 {[%emt 0:02:00]} 26. Qd1 Bc8 27. Qd3 {[%emt 0:01:00]} Bd7 {[%emt 0:01:00]} 28. a4 {[%emt 0:05:03]} Rac8 {[%emt 0:00:00]} 29. Nd1 {[%emt 0:05:45]} Ra8 {[%emt 0:01:00]} 30. Nc3 {[%emt 0:00:00]} Rac8 {[%emt 0:00:00]} 31. Nd1 {[%emt 0:01:00]} Ra8 {[%emt 0:01:00]} 32. Nc3 {[%emt 0:00:00]} Rac8 33. Nd1 {[%emt 0:01:00]} Bc6 {[%emt 0:14:12]} 34. c3 {[%emt 0:02:53]} d4 {[%emt 0:02:39]} 35. c4 {[%emt 0:08:30]} e5 {[%emt 0:02:41]} 36. fxe5 {[%emt 0:00:30]} Bxe5 {[%emt 0:00:35]} 37. Bf4 {[%emt 0:15:47]} Bf6 {[%emt 0:00:00]} 38. Bc1 {[%emt 0:00:00]} Be5 {[%emt 0:01:00]} 39. Bf4 {[%emt 0:01:00]} Bf6 {[%emt 0:00:00]} 40. Bc1 {[%emt 0:00:00]} Be5 {[%emt 0:01:00]} 41. Bf4 {[%emt 0:31:00]} Bxf4 {[%emt 0:35:15]} 42. gxf4 {[%emt 0:00:30]} Rfe8 {[%emt 0:06:22]} 43. Ra3 {[%emt 0:10:18]} Rf8 {[%emt 0:00:00]} 44. Ra1 {[%emt 0:00:00]} Rfe8 {[%emt 0:01:00]} 45. Ra3 {[%emt 0:01:00]} Rf8 {[%emt 0:00:00]} 46. Ra1 {[%emt 0:00:00]} Rfe8 {[%emt 0:01:00]} 47. Ra3 {[%emt 0:01:00]} Ne3 {[%emt 0:13:31]} 48. Nxe3 {[%emt 0:00:52]} Rxe3 {[%emt 0:00:35]} 49. Qd1 {[%emt 0:00:16]} Rce8 {[%emt 0:03:49]} 50. Rxe3 {[%emt 0:02:55]} Rxe3 {[%emt 0:00:41]} 51. Bd5+ {[%emt 0:13:23]} Bxd5+ {[%emt 0:03:02]} 52. cxd5 {[%emt 0:00:00]} Qc5 {[%emt 0:00:32]} 53. f5 {[%emt 0:00:00]} Qxd5+ {[%emt 0:00:10]} 54. Kg1 {[%emt 0:00:00]} Re5 {[%emt 0:02:28]} 55. Rf3 {[%emt 0:00:00]} Re3 {[%emt 0:00:00]} 56. Rf1 {[%emt 0:00:00]} Re5 {[%emt 0:01:00]} 57. Rf3 {[%emt 0:00:00]} Rxf5 {[%emt 0:00:47]} 58. Rxf5 {[%emt 0:00:00]} gxf5 {[%emt 0:00:24]} 59. Qh5 {[%emt 0:00:00]} Qe6 {[%emt 0:01:30]} 60. Kf1 {[%emt 0:00:00]} Qd5 {[%emt 0:00:00]} 61. Kg1 {[%emt 0:00:00]} Qe6 {[%emt 0:01:00]} 62. Kf1 Qe3 {[%emt 0:01:00]} 63. Qxf5 {[%emt 0:00:52]} Qc1+ {[%emt 0:00:00]} 64. Kg2 {[%emt 0:00:46]} Qxb2+ {[%emt 0:00:43]} 65. Kh3 {[%emt 0:00:45]} Qb6 {[%emt 0:04:01]} 66. Kg2 Qb2+ {[%emt 0:00:00]} 67. Kh3 {[%emt 0:01:00]} Qb6 {[%emt 0:01:00]} 68. Kg2 Qb2+ {[%emt 0:00:00]} 69. Kh3 {[%emt 0:01:00]} Qb6 {[%emt 0:00:00]} 70. Kg2 Qb2+ {[%emt 0:00:00]} 71. Kh3 {[%emt 0:01:00]} Qb6 72. Qd5+ {[%emt 0:00:00]} Kg7 {[%emt 0:00:00]} 73. a5 {[%emt 0:00:00]} Qh6+ {[%emt 0:00:00]} 74. Kg3 {[%emt 0:00:00]} Qb6 {[%emt 0:00:00]} 75. Kh3 {[%emt 0:00:00]} Qh6+ {[%emt 0:00:00]} 76. Kg3 {[%emt 0:00:00]} Qb6 {[%emt 0:00:00]} 77. Kh3 {[%emt 0:00:00]} Qh6+ {[%emt 0:00:00]} 78. Kg3 {[%emt 0:00:00]} Qg6+ {[%emt 0:00:00]} 79. Kh3 {[%emt 0:00:00]} Qh6+ {[%emt 0:00:00]} 80. Kg3 {[%emt 0:00:00]} Qg6+ {[%emt 0:00:00]} 81. Kh3 {[%emt 0:00:00]} Qh6+ {[%emt 0:00:00]} 82. Kg3 {[%emt 0:00:00]} Qg6+ {[%emt 0:00:00]} 83. Kh3 {[%emt 0:00:00]} Qh6+ {[%emt 0:00:00]} 84. Kg3 {[%emt 0:00:00]} Qg6+ {[%emt 0:00:00]} 85. Kh3 {[%emt 0:00:00]} Qd3+ {[%emt 0:00:00]} 86. Kh4 {[%emt 0:00:00]} Qg6 {[%emt 0:00:00]} 87. Kh3 {[%emt 0:00:00]} Qd3+ {[%emt 0:00:00]} 88. Kh4 {[%emt 0:00:00]} Qa6 {[%emt 0:00:00]} 89. Kh3 {[%emt 0:00:00]} Qh6+ {[%emt 0:00:00]} 90. Kg3 {[%emt 0:00:00]} Qg6+ {[%emt 0:00:00]} 91. Kh3 {[%emt 0:00:00]} Qd3+ {[%emt 0:00:00]} 92. Kh4 {[%emt 0:00:00]} Qa6 {[%emt 0:00:00]} 93. Kh3 {[%emt 0:00:00]} Qh6+ {[%emt 0:00:00]} 94. Kg3 {[%emt 0:00:00]} Qg6+ {[%emt 0:00:00]} 95. Kh3 {[%emt 0:00:00]} Qd3+ {[%emt 0:00:00]} 96. Kh4 {[%emt 0:00:00]} Qa6 {[%emt 0:00:00]} 97. Kh3 {[%emt 0:00:00]} Qh6+ {[%emt 0:00:00]} 98. Kg3 {[%emt 0:00:00]} Qg6+ {[%emt 0:00:00]} 99. Kh3 {[%emt 0:00:00]} Qd3+ {[%emt 0:00:00]} 100. Kh4 {[%emt 0:00:00]} Qa6 {[%emt 0:00:00]} 101. Kh3 {[%emt 0:00:00]} d3 102. Qg5+ {[%emt 0:00:00]} Kf8 {[%emt 0:01:29]} 103. Qd5 {[%emt 0:00:00]} Kg7 {[%emt 0:00:30]} 104. Qg5+ {[%emt 0:00:00]} Kf8 105. Qc5+ {[%emt 0:01:13]} Ke8 {[%emt 0:01:16]} 106. Qh5+ {[%emt 0:00:00]} Kf8 {[%emt 0:00:14]} 107. Qc5+ {[%emt 0:01:00]} Ke8 {[%emt 0:00:46]} 108. Qh5+ {[%emt 0:01:26]} Kf8 {[%emt 0:00:14]} 109. Qc5+ {[%emt 0:00:00]} Ke8 {[%emt 0:00:46]} 110. Qh5+ {[%emt 0:01:00]} Kf8 {[%emt 0:00:14]} 111. Qc5+ {[%emt 0:00:00]} Ke8 {[%emt 0:00:46]} 112. Qh5+ {[%emt 0:01:00]} Qg6 {[%emt 0:05:51]} 113. Qb5+ {[%emt 0:01:09]} Qc6 {[%emt 0:00:49]} 114. Qd5 {[%emt 0:00:00]} Qa6 {[%emt 0:00:00]} 115. Qh5+ {[%emt 0:00:21]} Qg6 {[%emt 0:00:41]} 116. Qb5+ {[%emt 0:01:09]} Qc6 {[%emt 0:00:49]} 117. Qh5+ {[%emt 0:01:11]} Qg6 {[%emt 0:00:11]} 118. Qb5+ {[%emt 0:00:00]} Qc6 {[%emt 0:00:49]} 119. Qh5+ {[%emt 0:01:00]} Qg6 {[%emt 0:00:11]} 120. Qb5+ {[%emt 0:00:00]} Qc6 {[%emt 0:00:49]} 121. Qh5+ {[%emt 0:00:00]} Kd8 {[%emt 0:02:21]} 122. Qd5+ {[%emt 0:00:00]} Ke8 {[%emt 0:00:00]} 123. Qh5+ {[%emt 0:02:45]} Kd8 {[%emt 0:01:00]} 124. Qg5+ {[%emt 0:00:40]} Kc7 {[%emt 0:00:34]} 125. Qd5 {[%emt 0:01:34]} Qd6 {[%emt 0:03:25]} 126. Qg5 {[%emt 0:00:00]} Qc6 {[%emt 0:00:30]} 127. Qf4+ {[%emt 0:01:00]} Qd6 128. Qd2 {[%emt 0:02:39]} Qe6+ {[%emt 0:00:00]} 129. Kg3 {[%emt 0:01:15]} Qc6 {[%emt 0:00:00]} 130. Kh3 {[%emt 0:00:00]} Qe6+ 131. Kg3 {[%emt 0:01:00]} Qe5+ {[%emt 0:03:57]} 132. Kh3 {[%emt 0:00:47]} Qd4 {[%emt 0:01:05]} 133. Qc1+ {[%emt 0:00:42]} Kb8 {[%emt 0:00:34]} 134. Qd2 {[%emt 0:00:20]} a6 {[%emt 0:00:15]} 135. Kg3 {[%emt 0:00:32]} Ka7 {[%emt 0:02:01]} 136. Kh3 {[%emt 0:00:00]} Kb8 {[%emt 0:00:00]} 137. Kg3 {[%emt 0:01:00]} Ka7 {[%emt 0:01:00]} 138. Kh3 {[%emt 0:01:12]} h5 {[%emt 0:00:31]} 139. Kg2 {[%emt 0:01:14]} Qe4+ {[%emt 0:00:52]} 140. Kg1 {[%emt 0:01:03]} Qg4+ {[%emt 0:00:19]} 141. Kh1 {[%emt 0:00:18]} Qf3+ {[%emt 0:00:53]} 142. Kg1 {[%emt 0:00:06]} Qg4+ {[%emt 0:00:07]} 143. Kh1 {[%emt 0:00:54]} Qf3+ {[%emt 0:00:53]} 144. Kg1 {[%emt 0:00:06]} Qg4+ {[%emt 0:03:05]} 145. Kh1 {[%emt 0:00:20]} Qe4+ {[%emt 0:00:03]} 146. Kg1 {[%emt 0:00:28]} Qd4+ {[%emt 0:00:02]} 147. Kg2 {[%emt 0:00:45]} Qe4+ {[%emt 0:00:00]} 148. Kg1 {[%emt 0:01:03]} Qg4+ {[%emt 0:00:00]} 149. Kh1 {[%emt 0:00:18]} Qf3+ {[%emt 0:00:00]} 150. Kg1 {[%emt 0:00:06]} Qg4+ {[%emt 0:02:55]} 151. Kh1 {[%emt 0:00:20]} Qe4+ {[%emt 0:00:03]} 152. Kg1 {[%emt 0:00:28]} Qd4+ {[%emt 0:00:02]} 153. Kg2 {[%emt 0:01:37]} h4 {[%emt 0:00:16]} 154. Kh3 {[%emt 0:00:47]} Kb8 {[%emt 0:00:15]} 155. Kg2 {[%emt 0:00:42]} Qg4+ {[%emt 0:00:34]} 156. Kh1 {[%emt 0:01:35]} h3 {[%emt 0:01:32]} 0-1

[Event "58th Akiba Rubinstein C 2022"]
[Site "Polanica-Zdroj"]
[Date "2022.08.20"]
[Round "8.6"]
[White "Kruczynski, Marek"]
[Black "Grubiak, Roman"]
[Result "1/2-1/2"]
[ECO "C00"]
[WhiteElo "1651"]
[BlackElo "1637"]
[Annotator "NA"]
[PlyCount "259"]
[EventDate "2022.08.13"]
[EventCountry "POL"]
[SourceTitle "playchess.com"]
[Source "ChessBase"]
[SourceQuality "1"]
[TimeControl "40/5400+30:1800+30"]

1. e4 {[%emt 0:00:12]} e6 {[%emt 0:00:08]} 2. d3 {[%emt 0:00:35]} d5 3. Qe2 {[%emt 0:00:59]} dxe4 {[%emt 0:03:58]} 4. dxe4 {[%emt 0:00:15]} Bd7 {[%emt 0:03:20]} 5. g3 {[%emt 0:03:26]} Nc6 {[%emt 0:03:05]} 6. c3 {[%emt 0:01:54]} h5 7. Nf3 {[%emt 0:02:20]} e5 {[%emt 0:01:27]} 8. Be3 {[%emt 0:03:26]} Be7 {[%emt 0:02:22]} 9. Nbd2 {[%emt 0:03:24]} h4 {[%emt 0:00:00]} 10. Bg2 {[%emt 0:10:21]} hxg3 {[%emt 0:25:43]} 11. hxg3 {[%emt 0:00:19]} Rxh1+ {[%emt 0:01:00]} 12. Bxh1 {[%emt 0:00:00]} Bf6 {[%emt 0:00:00]} 13. Bg2 {[%emt 0:00:43]} Be7 {[%emt 0:05:14]} 14. Bh1 {[%emt 0:00:00]} Bf6 {[%emt 0:00:00]} 15. Bg2 {[%emt 0:01:00]} Be7 {[%emt 0:01:00]} 16. Bh1 Bf6 {[%emt 0:07:08]} 17. O-O-O {[%emt 0:05:31]} Qe7 {[%emt 0:00:41]} 18. Nb3 b6 {[%emt 0:03:17]} 19. Nfd2 {[%emt 0:12:17]} O-O-O {[%emt 0:02:30]} 20. f4 {[%emt 0:06:23]} Kb8 {[%emt 0:00:44]} 21. f5 {[%emt 0:03:02]} Bg5 {[%emt 0:02:06]} 22. Nf3 {[%emt 0:01:48]} Bxe3+ {[%emt 0:00:44]} 23. Qxe3 {[%emt 0:00:16]} Nf6 {[%emt 0:02:13]} 24. Qe2 Ng8 25. Qe3 {[%emt 0:01:00]} Nf6 {[%emt 0:01:00]} 26. Qe2 Ng8 27. Qe3 {[%emt 0:01:00]} Nf6 {[%emt 0:01:00]} 28. Nh4 {[%emt 0:04:21]} Ng8 {[%emt 0:00:00]} 29. Nf3 {[%emt 0:00:00]} Nf6 {[%emt 0:01:00]} 30. Nh4 {[%emt 0:01:00]} Bc8 {[%emt 0:01:44]} 31. Nf3 {[%emt 0:00:00]} Bd7 {[%emt 0:00:00]} 32. Nh4 {[%emt 0:01:00]} Bc8 {[%emt 0:01:00]} 33. Bf3 {[%emt 0:03:21]} Rxd1+ {[%emt 0:00:55]} 34. Kxd1 {[%emt 0:02:39]} Ne8 {[%emt 0:00:35]} 35. Kc2 {[%emt 0:02:40]} Nd6 {[%emt 0:00:31]} 36. Nd2 {[%emt 0:00:13]} Ne8 {[%emt 0:00:29]} 37. Nb3 {[%emt 0:00:47]} Nd6 {[%emt 0:00:31]} 38. Nd2 {[%emt 0:00:13]} Qf8 {[%emt 0:04:28]} 39. Nb3 {[%emt 0:00:47]} Qe7 {[%emt 0:00:00]} 40. Nd2 {[%emt 0:00:13]} Qf8 {[%emt 0:01:00]} 41. Qd3 {[%emt 0:40:39]} Bb7 {[%emt 0:00:00]} 42. Qe3 {[%emt 0:00:00]} Bc8 {[%emt 0:31:00]} 43. Qd3 {[%emt 0:01:00]} Bb7 {[%emt 0:00:00]} 44. Qe3 {[%emt 0:00:00]} Bc8 {[%emt 0:01:00]} 45. Qd3 {[%emt 0:01:00]} Bb7 {[%emt 0:00:00]} 46. Qe3 {[%emt 0:00:00]} Bc8 {[%emt 0:01:00]} 47. Qd3 {[%emt 0:01:00]} Bb7 {[%emt 0:06:27]} 48. Qe3 {[%emt 0:00:30]} Bc8 {[%emt 0:00:00]} 49. Qd3 {[%emt 0:00:30]} Bb7 {[%emt 0:01:00]} 50. Qe3 {[%emt 0:00:30]} Bc8 {[%emt 0:00:00]} 51. Qd3 {[%emt 0:00:30]} Bb7 {[%emt 0:01:00]} 52. Qe3 {[%emt 0:00:30]} Na5 {[%emt 0:03:15]} 53. Nb3 {[%emt 0:00:00]} Nc6 {[%emt 0:00:00]} 54. Nd2 {[%emt 0:01:00]} Na5 {[%emt 0:01:00]} 55. Nb3 {[%emt 0:00:00]} Nc6 {[%emt 0:00:00]} 56. Nd2 {[%emt 0:01:00]} Na5 {[%emt 0:00:00]} 57. Be2 {[%emt 0:04:14]} Nc6 {[%emt 0:00:00]} 58. Bf3 {[%emt 0:00:00]} Na5 {[%emt 0:02:28]} 59. Be2 {[%emt 0:01:00]} c5 {[%emt 0:00:30]} 60. b3 Nc6 {[%emt 0:02:06]} 61. Ng2 {[%emt 0:03:47]} Na5 {[%emt 0:00:00]} 62. Nh4 Nc6 {[%emt 0:01:00]} 63. Ng2 {[%emt 0:01:00]} Na5 {[%emt 0:00:00]} 64. Nh4 Nc6 {[%emt 0:01:00]} 65. Ng2 {[%emt 0:01:00]} Ne7 {[%emt 0:01:51]} 66. Nh4 {[%emt 0:00:00]} Nc6 {[%emt 0:00:00]} 67. Ng2 {[%emt 0:01:00]} Ne7 {[%emt 0:01:00]} 68. Nh4 {[%emt 0:02:37]} f6 {[%emt 0:01:17]} 69. Bd3 {[%emt 0:02:09]} Qc8 {[%emt 0:03:29]} 70. Be2 {[%emt 0:00:00]} Qf8 {[%emt 0:00:00]} 71. Bd3 {[%emt 0:01:00]} Qc8 {[%emt 0:01:00]} 72. Be2 {[%emt 0:00:00]} Qf8 {[%emt 0:00:00]} 73. Bd3 {[%emt 0:01:00]} Qc8 {[%emt 0:01:00]} 74. Be2 {[%emt 0:00:00]} Qf8 {[%emt 0:00:00]} 75. Bd3 {[%emt 0:01:00]} Qc8 76. Nhf3 {[%emt 0:01:53]} b5 {[%emt 0:02:07]} 77. Kb2 {[%emt 0:00:35]} Qc6 {[%emt 0:00:00]} 78. Kc2 {[%emt 0:00:25]} Qc8 {[%emt 0:01:00]} 79. Kb2 {[%emt 0:00:35]} Qc6 {[%emt 0:00:30]} 80. Kc2 {[%emt 0:00:25]} Qc8 {[%emt 0:00:30]} 81. Kb2 {[%emt 0:00:35]} Qc6 {[%emt 0:00:30]} 82. Kc2 {[%emt 0:00:25]} Qc8 {[%emt 0:00:30]} 83. Kb2 {[%emt 0:00:35]} Qc6 {[%emt 0:00:30]} 84. g4 {[%emt 0:01:41]} b4 {[%emt 0:01:09]} 85. cxb4 {[%emt 0:01:38]} cxb4 86. Bc2 {[%emt 0:00:48]} Nec8 {[%emt 0:04:03]} 87. Bd3 {[%emt 0:00:12]} Ne7 88. Bc2 {[%emt 0:00:48]} Nec8 {[%emt 0:01:00]} 89. Bd3 {[%emt 0:00:12]} Ne7 90. Bc2 {[%emt 0:00:48]} Nec8 {[%emt 0:01:00]} 91. Bd3 {[%emt 0:00:12]} Ne7 92. Bc2 {[%emt 0:00:48]} Nec8 {[%emt 0:01:00]} 93. Ne1 {[%emt 0:04:55]} Ne7 {[%emt 0:00:00]} 94. Nef3 {[%emt 0:00:00]} Nec8 {[%emt 0:01:00]} 95. Ne1 {[%emt 0:01:00]} Qb6 {[%emt 0:01:07]} 96. Qxb6 {[%emt 0:00:47]} Nxb6 {[%emt 0:00:02]} 97. Nef3 {[%emt 0:02:29]} a5 {[%emt 0:00:42]} 98. g5 {[%emt 0:00:28]} Nd7 {[%emt 0:00:27]} 99. gxf6 {[%emt 0:00:00]} gxf6 {[%emt 0:00:00]} 100. Nh2 {[%emt 0:00:00]} Kc7 {[%emt 0:00:00]} 101. Ng4 {[%emt 0:00:00]} Kd8 {[%emt 0:00:00]} 102. Nh2 {[%emt 0:00:00]} Kc7 {[%emt 0:00:00]} 103. Ng4 {[%emt 0:00:00]} Kd8 {[%emt 0:00:00]} 104. Nh2 {[%emt 0:00:00]} Kc7 {[%emt 0:00:00]} 105. Ng4 {[%emt 0:00:00]} Kd8 {[%emt 0:00:00]} 106. a4 {[%emt 0:00:00]} Ke8 {[%emt 0:00:00]} 107. Nf2 {[%emt 0:00:00]} Nc5 {[%emt 0:00:00]} 108. Kc1 {[%emt 0:00:00]} Nd7 {[%emt 0:00:00]} 109. Kb2 {[%emt 0:00:00]} Nc5 {[%emt 0:00:00]} 110. Kc1 {[%emt 0:00:00]} Kf8 {[%emt 0:00:00]} 111. Kb2 {[%emt 0:00:00]} Ke8 {[%emt 0:00:00]} 112. Kc1 {[%emt 0:00:00]} Kf8 {[%emt 0:00:00]} 113. Kd1 {[%emt 0:00:00]} Kg7 {[%emt 0:00:00]} 114. Ke2 {[%emt 0:00:00]} Kh6 {[%emt 0:00:00]} 115. Ke3 {[%emt 0:00:00]} Kg5 {[%emt 0:00:00]} 116. Nf3+ {[%emt 0:00:00]} Kh6 {[%emt 0:00:00]} 117. Nd2 {[%emt 0:00:00]} Kg5 {[%emt 0:00:00]} 118. Nf3+ {[%emt 0:00:00]} Kh6 {[%emt 0:00:00]} 119. Nd2 {[%emt 0:00:00]} Kg5 {[%emt 0:00:00]} 120. Nf3+ {[%emt 0:00:00]} Kh6 {[%emt 0:00:00]} 121. Nd2 {[%emt 0:00:00]} Bc6 {[%emt 0:00:00]} 122. Ke2 {[%emt 0:00:00]} Bb7 {[%emt 0:00:00]} 123. Ke3 {[%emt 0:00:00]} Kg5 {[%emt 0:00:00]} 124. Nf3+ {[%emt 0:00:00]} Kh6 {[%emt 0:00:00]} 125. Nd2 {[%emt 0:00:00]} Bc6 {[%emt 0:00:00]} 126. Bd1 {[%emt 0:00:00]} Bb7 {[%emt 0:00:00]} 127. Bc2 {[%emt 0:00:00]} Kg5 {[%emt 0:00:00]} 128. Nf3+ {[%emt 0:00:00]} Kh6 {[%emt 0:00:00]} 129. Nd2 {[%emt 0:00:00]} Bc6 {[%emt 0:00:00]} 130. Bd1 1/2-1/2

[Event "58th Akiba Rubinstein C 2022"]
[Site "Polanica-Zdroj"]
[Date "2022.08.20"]
[Round "8.7"]
[White "Pyka, Roman"]
[Black "Chubar, Vladimir"]
[Result "1/2-1/2"]
[ECO "A26"]
[WhiteElo "1881"]
[BlackElo "1809"]
[Annotator "NA RC"]
[PlyCount "97"]
[EventDate "2022.08.13"]
[EventCountry "POL"]
[SourceTitle "playchess.com"]
[Source "ChessBase"]
[SourceQuality "1"]
[TimeControl "40/5400+30:1800+30"]

1. g3 {[%emt 0:00:32]} g6 {[%emt 0:13:37]} 2. c4 {[%emt 0:02:04]} Bg7 {[%emt 0:00:55]} 3. Nc3 {[%emt 0:00:09]} e5 {[%emt 0:00:31]} 4. Bg2 {[%emt 0:00:41]} Nc6 {[%emt 0:00:30]} 5. d3 {[%emt 0:00:48]} d6 6. Nf3 {[%emt 0:00:49]} Nge7 {[%emt 0:03:19]} 7. O-O {[%emt 0:00:59]} O-O {[%emt 0:00:58]} 8. h3 {[%emt 0:02:10]} h6 {[%emt 0:01:50]} 9. e4 {[%emt 0:03:22]} Be6 {[%emt 0:01:19]} 10. Be3 {[%emt 0:03:59]} Qd7 {[%emt 0:00:00]} 11. Bc1 {[%emt 0:00:00]} Qd8 {[%emt 0:01:00]} 12. Be3 {[%emt 0:01:00]} Qd7 {[%emt 0:00:00]} 13. Bc1 {[%emt 0:00:00]} Qd8 {[%emt 0:01:00]} 14. Be3 {[%emt 0:01:00]} Qd7 {[%emt 0:00:00]} 15. Kh2 {[%emt 0:00:00]} Qd8 {[%emt 0:01:00]} 16. Kg1 {[%emt 0:01:00]} Qd7 17. Kh2 {[%emt 0:05:50]} Nd4 {[%emt 0:03:44]} 18. Bxd4 {[%emt 0:02:51]} exd4 {[%emt 0:03:32]} 19. Ne2 {[%emt 0:00:04]} c5 {[%emt 0:02:14]} 20. Nf4 {[%emt 0:00:11]} b5 {[%emt 0:02:41]} 21. b3 {[%emt 0:01:56]} bxc4 {[%emt 0:05:14]} 22. bxc4 {[%emt 0:02:14]} Rfb8 23. Qc2 {[%emt 0:00:28]} Rb6 {[%emt 0:09:24]} 24. Qd1 {[%emt 0:00:00]} Rbb8 25. Qc2 {[%emt 0:01:00]} Rb6 {[%emt 0:01:00]} 26. Rab1 {[%emt 0:02:35]} Rbb8 {[%emt 0:00:00]} 27. Ra1 {[%emt 0:00:00]} Rb6 {[%emt 0:01:00]} 28. Rab1 {[%emt 0:01:00]} Rab8 {[%emt 0:01:27]} 29. Ra1 {[%emt 0:00:00]} Ra8 {[%emt 0:00:00]} 30. Rab1 {[%emt 0:01:00]} Rab8 {[%emt 0:01:00]} 31. Rxb6 {[%emt 0:03:33]} Rxb6 {[%emt 0:00:59]} 32. Rb1 {[%emt 0:02:12]} Qb7 {[%emt 0:02:09]} 33. Rf1 {[%emt 0:00:00]} Qd7 {[%emt 0:00:00]} 34. Rb1 {[%emt 0:01:00]} Qb7 {[%emt 0:01:00]} 35. Rf1 {[%emt 0:00:00]} Qd7 {[%emt 0:00:00]} 36. Rb1 {[%emt 0:01:00]} Qb7 37. Nd2 {[%emt 0:04:43]} Nc6 {[%emt 0:06:54]} 38. Nf3 {[%emt 0:00:00]} Ne7 39. Nd2 {[%emt 0:01:00]} Nc6 {[%emt 0:01:00]} 40. Rxb6 {[%emt 0:03:17]} Qxb6 {[%emt 0:01:33]} 41. Nf3 {[%emt 0:23:30]} Qb7 42. Nd2 {[%emt 0:00:00]} Qb6 {[%emt 0:31:00]} 43. Nf3 {[%emt 0:01:00]} Qb7 44. Nd2 {[%emt 0:00:00]} Qb6 {[%emt 0:01:00]} 45. Nf3 {[%emt 0:01:00]} Qb7 46. Nd2 Qb6 {[%emt 0:01:00]} 47. Qb3 {[%emt 0:15:14]} h5 48. Nd5 {[%emt 0:06:46]} Bxd5 {[%emt 0:03:01]} 49. Nf1 {[%emt 0:08:35]} 1/2-1/2

[Event "58th Akiba Rubinstein C 2022"]
[Site "Polanica-Zdroj"]
[Date "2022.08.20"]
[Round "8.8"]
[White "Tchorzewski, Kazimierz"]
[Black "Mazalon, Mariusz"]
[Result "1/2-1/2"]
[ECO "B27"]
[WhiteElo "1670"]
[BlackElo "1994"]
[Annotator "NA RC"]
[PlyCount "139"]
[EventDate "2022.08.13"]
[EventCountry "POL"]
[SourceTitle "playchess.com"]
[Source "ChessBase"]
[SourceQuality "1"]
[TimeControl "40/5400+30:1800+30"]

1. e4 {[%emt 0:00:02]} c5 {[%emt 0:00:49]} 2. Nf3 {[%emt 0:00:26]} g6 {[%emt 0:01:04]} 3. d4 Bg7 {[%emt 0:00:20]} 4. c3 {[%emt 0:03:51]} cxd4 {[%emt 0:02:05]} 5. Nxd4 {[%emt 0:00:20]} Nc6 {[%emt 0:00:37]} 6. Nb3 {[%emt 0:00:58]} Nf6 {[%emt 0:01:35]} 7. Bd3 {[%emt 0:00:07]} O-O {[%emt 0:02:08]} 8. Bg5 {[%emt 0:03:41]} d5 {[%emt 0:01:53]} 9. Qe2 {[%emt 0:06:05]} dxe4 {[%emt 0:09:32]} 10. Bxe4 {[%emt 0:00:10]} Nxe4 {[%emt 0:01:08]} 11. Qxe4 h6 {[%emt 0:08:31]} 12. Bh4 {[%emt 0:01:19]} g5 {[%emt 0:04:35]} 13. Bg3 {[%emt 0:00:10]} f5 {[%emt 0:00:13]} 14. Qc4+ {[%emt 0:00:17]} Kh8 {[%emt 0:00:11]} 15. f3 {[%emt 0:00:17]} f4 {[%emt 0:02:03]} 16. Bf2 {[%emt 0:00:07]} Ne5 {[%emt 0:00:39]} 17. Qe2 {[%emt 0:01:06]} g4 {[%emt 0:11:13]} 18. Bd4 {[%emt 0:00:51]} gxf3 {[%emt 0:08:34]} 19. gxf3 {[%emt 0:00:21]} Qd5 {[%emt 0:03:51]} 20. N1d2 {[%emt 0:00:06]} Bf5 {[%emt 0:01:08]} 21. Nb1 {[%emt 0:00:45]} Bc8 {[%emt 0:00:00]} 22. N1d2 {[%emt 0:00:15]} Bf5 {[%emt 0:01:00]} 23. Nb1 {[%emt 0:00:45]} Bc8 {[%emt 0:00:00]} 24. N1d2 {[%emt 0:00:15]} Bf5 {[%emt 0:01:00]} 25. Nb1 {[%emt 0:00:45]} Bc8 {[%emt 0:00:00]} 26. N1d2 {[%emt 0:00:15]} Bf5 {[%emt 0:01:00]} 27. Bxe5 {[%emt 0:05:56]} Bxe5 {[%emt 0:01:44]} 28. Ne4 {[%emt 0:00:05]} Bxe4 29. Qxe4 {[%emt 0:02:44]} Qxe4+ {[%emt 0:03:10]} 30. fxe4 {[%emt 0:00:05]} f3 {[%emt 0:00:12]} 31. Kf2 {[%emt 0:00:09]} Rad8 {[%emt 0:00:42]} 32. Rad1 {[%emt 0:00:02]} Rxd1 {[%emt 0:00:38]} 33. Rxd1 {[%emt 0:00:02]} Bxh2 {[%emt 0:00:12]} 34. Rd3 {[%emt 0:00:08]} Be5 {[%emt 0:00:40]} 35. Rd1 {[%emt 0:00:30]} Bh2 {[%emt 0:00:20]} 36. Rd3 {[%emt 0:00:30]} e5 {[%emt 0:09:15]} 37. Rxf3 {[%emt 0:00:21]} Bf4 {[%emt 0:00:06]} 38. Rd3 {[%emt 0:00:39]} Bh2+ 39. Rf3 {[%emt 0:00:21]} Bf4 {[%emt 0:01:00]} 40. Nc5 {[%emt 0:01:22]} Bh2 41. Nb3 {[%emt 0:29:38]} Bf4 {[%emt 0:31:00]} 42. Nc5 {[%emt 0:01:22]} Bh2 43. Nb3 {[%emt 0:00:00]} Bf4 {[%emt 0:01:00]} 44. Nc5 {[%emt 0:01:00]} Bh2 45. Nb3 {[%emt 0:00:00]} Bf4 {[%emt 0:01:00]} 46. Nc5 {[%emt 0:01:00]} Rf6 {[%emt 0:11:24]} 47. Nb3 {[%emt 0:00:00]} Rf8 {[%emt 0:00:00]} 48. Nc5 {[%emt 0:01:00]} Rf6 {[%emt 0:01:00]} 49. b4 {[%emt 0:01:30]} b6 {[%emt 0:03:43]} 50. Nd3 {[%emt 0:01:34]} Kg7 {[%emt 0:00:05]} 51. c4 {[%emt 0:00:38]} Kg6 {[%emt 0:00:57]} 52. c5 {[%emt 0:00:12]} bxc5 {[%emt 0:00:33]} 53. bxc5 {[%emt 0:00:11]} Kg5 {[%emt 0:00:23]} 54. Nb4 {[%emt 0:01:10]} a5 {[%emt 0:02:57]} 55. Nd5 {[%emt 0:00:34]} Rc6 {[%emt 0:00:11]} 56. Rc3 {[%emt 0:00:18]} Bd2 {[%emt 0:02:46]} 57. Rf3 {[%emt 0:00:42]} Bf4 {[%emt 0:00:00]} 58. Rc3 {[%emt 0:00:18]} Bd2 {[%emt 0:01:00]} 59. Rg3+ {[%emt 0:05:32]} Kh4 {[%emt 0:00:16]} 60. Rd3 {[%emt 0:00:00]} Kg5 {[%emt 0:00:44]} 61. Rg3+ {[%emt 0:01:00]} Kh4 {[%emt 0:00:16]} 62. Rd3 {[%emt 0:00:00]} Bg5 {[%emt 0:00:00]} 63. Rc3 {[%emt 0:00:00]} Kg4 {[%emt 0:00:00]} 64. Rg3+ {[%emt 0:00:00]} Kh4 {[%emt 0:00:00]} 65. Rc3 {[%emt 0:00:00]} Kg4 {[%emt 0:00:00]} 66. Rg3+ {[%emt 0:00:00]} Kh4 {[%emt 0:00:00]} 67. Rc3 {[%emt 0:00:00]} Kg4 {[%emt 0:00:00]} 68. Rg3+ {[%emt 0:00:00]} Kh5 {[%emt 0:00:00]} 69. Rc3 {[%emt 0:00:00]} Kg4 {[%emt 0:00:00]} 70. Rg3+ {[%emt 0:00:00]} 1/2-1/2